[Event "German Bundesliga 2023-24"]
[Site "Germany"]
[Date "2024.02.24"]
[Round "10.40"]
[White "Vandenbussche, Thibaut"]
[Black "Wegerle, Joerg"]
[Result "1-0"]
[ECO "C42"]
[WhiteElo "2434"]
[BlackElo "2405"]
[Annotator "RC"]
[PlyCount "145"]
[EventDate "2023.10.20"]
[EventType "team-tourn"]
[EventCountry "GER"]
[SourceTitle "playchess.com"]
[Source "ChessBase"]
[SourceQuality "1"]
[TimeControl "40/6000+30:3000+30"]

1. e4 {[%emt 0:00:01]} e5 {[%emt 0:00:06]} 2. Nf3 {[%emt 0:00:05]} Nf6 {[%emt 0:00:07]} 3. Nc3 {[%emt 0:00:10]} Bb4 {[%emt 0:00:29]} 4. Nxe5 {[%emt 0:00:15]} O-O {[%emt 0:00:21]} 5. Nd3 {[%emt 0:00:07]} Bxc3 {[%emt 0:00:06]} 6. dxc3 {[%emt 0:00:03]} Nxe4 {[%emt 0:00:07]} 7. Be2 {[%emt 0:00:06]} d6 {[%emt 0:04:39]} 8. O-O {[%emt 0:01:06]} Nd7 {[%emt 0:01:12]} 9. f3 {[%emt 0:00:59]} Nec5 {[%emt 0:02:05]} 10. Be3 {[%emt 0:01:29]} Re8 {[%emt 0:04:38]} 11. Bf2 {[%emt 0:00:12]} Nxd3 {[%emt 0:06:35]} 12. cxd3 {[%emt 0:00:15]} Nf8 {[%emt 0:00:18]} 13. Qd2 {[%emt 0:07:10]} Bd7 {[%emt 0:03:17]} 14. f4 {[%emt 0:17:08]} Qf6 {[%emt 0:06:33]} 15. Bf3 {[%emt 0:10:06]} Bc6 {[%emt 0:03:59]} 16. Bd4 {[%emt 0:01:59]} Qh6 {[%emt 0:03:41]} 17. Bxc6 {[%emt 0:10:35]} bxc6 {[%emt 0:00:07]} 18. Rae1 {[%emt 0:00:24]} Rxe1 {[%emt 0:09:03]} 19. Rxe1 {[%emt 0:04:42]} c5 {[%emt 0:00:40]} 20. Bf2 {[%emt 0:01:36]} Ne6 {[%emt 0:03:49]} 21. Re4 {[%emt 0:04:47]} Qh5 {[%emt 0:20:36]} 22. h3 {[%emt 0:06:40]} g6 {[%emt 0:06:41]} 23. Kh2 {[%emt 0:04:37]} Re8 {[%emt 0:08:52]} 24. g4 {[%emt 0:12:08]} Qd5 {[%emt 0:02:54]} 25. Qe2 {[%emt 0:06:28]} Qc6 {[%emt 0:04:04]} 26. Bh4 {[%emt 0:05:45]} Ng7 {[%emt 0:05:05]} 27. f5 {[%emt 0:03:06]} Rxe4 {[%emt 0:04:16]} 28. Qxe4 {[%emt 0:00:28]} Qd7 {[%emt 0:00:41]} 29. Be7 {[%emt 0:06:40]} d5 {[%emt 0:05:20]} 30. Qe5 {[%emt 0:00:21]} gxf5 {[%emt 0:00:57]} 31. Bxc5 {[%emt 0:02:05]} Ne6 {[%emt 0:00:27]} 32. Bxa7 {[%emt 0:01:37]} fxg4 {[%emt 0:01:43]} 33. Be3 {[%emt 0:03:00]} Qb5 {[%emt 0:02:37]} 34. c4 {[%emt 0:00:39]} Qa4 {[%emt 0:00:42]} 35. cxd5 {[%emt 0:00:46]} Qc2+ {[%emt 0:00:28]} 36. Kg3 {[%emt 0:00:00]} gxh3 {[%emt 0:00:35]} 37. Kxh3 {[%emt 0:00:12]} Ng7 {[%emt 0:00:22]} 38. Qe4 {[%emt 0:01:07]} Qe2 {[%emt 0:00:37]} 39. Bd4 {[%emt 0:00:30]} Qh5+ {[%emt 0:00:38]} 40. Kg2 {[%emt 0:00:32]} Qg5+ {[%emt 0:00:28]} 41. Kf2 {[%emt 0:05:25]} Qd2+ {[%emt 0:15:44]} 42. Kf3 {[%emt 0:00:56]} Qd1+ {[%emt 0:01:22]} 43. Qe2 {[%emt 0:24:17]} Qh1+ {[%emt 0:07:36]} 44. Qg2 {[%emt 0:00:10]} Qd1+ {[%emt 0:00:08]} 45. Kf4 {[%emt 0:02:54]} Qc1+ {[%emt 0:01:30]} 46. Be3 {[%emt 0:00:59]} Qe1 {[%emt 0:00:51]} 47. Bd2 {[%emt 0:07:33]} Qh4+ {[%emt 0:15:53]} 48. Ke3 {[%emt 0:00:02]} Kf8 {[%emt 0:00:23]} 49. Qe4 {[%emt 0:01:56]} Qh3+ {[%emt 0:00:36]} 50. Ke2 {[%emt 0:00:30]} Nf5 {[%emt 0:00:42]} 51. Kd1 {[%emt 0:01:42]} Qf1+ {[%emt 0:06:09]} 52. Kc2 {[%emt 0:00:06]} Qf2 {[%emt 0:00:17]} 53. a4 {[%emt 0:01:30]} h5 {[%emt 0:01:15]} 54. Qb4+ {[%emt 0:05:04]} Kg7 {[%emt 0:01:26]} 55. Qf4 {[%emt 0:01:41]} Qc5+ {[%emt 0:01:05]} 56. Qc4 {[%emt 0:00:17]} Qf2 {[%emt 0:00:16]} 57. Qf4 {[%emt 0:01:00]} Qc5+ {[%emt 0:00:04]} 58. Bc3+ {[%emt 0:00:14]} Kg6 {[%emt 0:00:12]} 59. Qe5 {[%emt 0:01:09]} Kg5 {[%emt 0:01:04]} 60. a5 {[%emt 0:02:02]} Qb5 {[%emt 0:03:20]} 61. Qf6+ {[%emt 0:01:01]} Kg4 {[%emt 0:00:15]} 62. Qxf7 {[%emt 0:00:31]} Qa4+ {[%emt 0:00:55]} 63. Kc1 {[%emt 0:00:27]} Qf4+ {[%emt 0:00:28]} 64. Kb1 {[%emt 0:00:19]} h4 {[%emt 0:00:26]} 65. Qg6+ {[%emt 0:00:33]} Kf3 {[%emt 0:00:35]} 66. a6 {[%emt 0:00:25]} Ne3 {[%emt 0:00:30]} 67. Qe4+ {[%emt 0:00:46]} Qxe4 {[%emt 0:00:26]} 68. dxe4 {[%emt 0:00:01]} Nc4 {[%emt 0:00:19]} 69. a7 {[%emt 0:00:44]} Nb6 {[%emt 0:00:20]} 70. Be5 {[%emt 0:00:43]} h3 {[%emt 0:00:35]} 71. Bxc7 {[%emt 0:00:16]} Na8 {[%emt 0:00:21]} 72. Bh2 {[%emt 0:00:30]} Kxe4 {[%emt 0:00:08]} 73. d6 {[%emt 0:00:07]} 1-0

[Event "German Bundesliga 2023-24"]
[Site "Germany"]
[Date "2024.02.24"]
[Round "10.41"]
[White "Navara, David"]
[Black "Livaic, Leon"]
[Result "1/2-1/2"]
[ECO "D35"]
[WhiteElo "2679"]
[BlackElo "2549"]
[Annotator "TA"]
[PlyCount "87"]
[EventDate "2023.10.20"]
[EventType "team-tourn"]
[EventCountry "GER"]
[SourceTitle "playchess.com"]
[Source "ChessBase"]
[SourceQuality "1"]
[TimeControl "40/6000+30:3000+30"]

{[%evp 15,87,14,13,10,25,18,22,26,17,0,0,0,9,0,10,7,15,0,0,0,0,0,0,0,0,-8,0,0,18,9,81,83,94,95,106,92,101,101,100,110,110,80,113,106,106,97,105,105,113,113,113,68,75,27,27,20,20,20,24,43,63,0,0,0,0,0,0,0,0,-24,0,0,0,-27]} 1. c4 {[%emt 0:00:03]} e6 {[%emt 0:00:48]} 2. Nc3 {[%emt 0:00:06]} d5 {[%emt 0:00:08]} 3. d4 {[%emt 0:00:05]} Nf6 {[%emt 0:00:50]} 4. cxd5 {[%emt 0:00:06]} exd5 {[%emt 0:00:05]} 5. Bg5 {[%emt 0:00:07]} c6 {[%emt 0:01:17]} 6. e3 {[%emt 0:00:04]} Be7 {[%emt 0:00:22]} 7. Bd3 {[%emt 0:00:06]} Nbd7 {[%emt 0:00:53]} 8. Nge2 {[%emt 0:00:53]} h6 {[%emt 0:04:25]} 9. Bh4 {[%emt 0:00:10]} Nh5 {[%emt 0:01:18]} 10. Bxe7 {[%emt 0:01:08]} Qxe7 {[%emt 0:00:04]} 11. O-O {[%emt 0:00:14]} O-O {[%emt 0:01:25]} 12. a4 {[%emt 0:00:12]} a5 {[%emt 0:03:11]} 13. Qd2 {[%emt 0:01:17]} Re8 {[%emt 0:05:22]} 14. Rfe1 {[%emt 0:11:30]} Nb6 {[%emt 0:05:23]} 15. b3 {[%emt 0:01:40]} Bd7 {[%emt 0:14:44]} 16. Rad1 {[%emt 0:02:29]} Qg5 {[%emt 0:01:31]} 17. Nf4 {[%emt 0:09:46]} Nxf4 {[%emt 0:18:33]} 18. exf4 {[%emt 0:00:26]} Rxe1+ {[%emt 0:00:04]} 19. Rxe1 {[%emt 0:00:09]} Qf6 {[%emt 0:00:07]} 20. Re5 {[%emt 0:01:06]} Qd6 {[%emt 0:01:44]} 21. Bc2 {[%emt 0:02:51]} Rc8 {[%emt 0:14:37]} 22. h4 {[%emt 0:12:01]} c5 {[%emt 0:14:39]} (22... f6 $11 23. Re3 Ra8) 23. dxc5 {[%emt 0:00:43]} Qxc5 {[%emt 0:00:49]} 24. Nxd5 {[%emt 0:02:00] [#] Ne7+ is the strong threat.} Qxc2 {[%emt 0:05:28]} ({Reject} 24... Nxd5 25. Rxd5 Qxc2 26. Qxc2 (26. Rxd7 Qxb3 27. Qxa5 Qb1+ 28. Kh2 Qe4 $14) 26... Rxc2 27. Rxd7 $18) 25. Qxc2 {[%emt 0:00:41]} (25. Qxa5 $2 {too greedy.} Nxd5 26. Qe1 Qxb3 $19 (26... Nxf4 $2 27. Qf1 $19) (26... Qc1 $2 27. Qf1 $19)) 25... Rxc2 {[%emt 0:00:03]} 26. Nxb6 $16 {[%emt 0:00:08][%mdl 4096] Endgame. KRB-KRN} Be6 {[%emt 0:00:07]} 27. Rxa5 {[%emt 0:13:15]} Bxb3 {[%emt 0:01:01]} 28. f5 {[%emt 0:05:32]} Rc7 {[%emt 0:02:09]} 29. f3 {[%emt 0:13:55]} f6 {[%emt 0:00:54]} 30. Kf2 {[%emt 0:04:05]} Kf8 {[%emt 0:03:28]} 31. Ke3 {[%emt 0:05:51][%cal Oa5c5]} Ke7 {[%emt 0:01:22]} 32. Rb5 {[%emt 0:04:40]} Ba2 {[%emt 0:02:49]} 33. Kd4 {[%emt 0:01:41]} Kd6 $1 {[%emt 0:00:31]} 34. a5 {[%emt 0:08:20]} ({White should try} 34. Rb4 $16) 34... Rc2 $11 {[%emt 0:02:33]} 35. g4 {[%emt 0:01:18]} Kc6 {[%emt 0:03:19]} 36. Rb4 {[%emt 0:00:07]} Rc5 {[%emt 0:00:19]} 37. Ra4 {[%emt 0:07:22]} Rc2 {[%emt 0:00:55]} 38. Rb4 {[%emt 0:00:18]} ({Better is} 38. Ra3 $14) 38... Rc5 {[%emt 0:00:04]} 39. Nc4 {[%emt 0:00:59] [#] Rb6+ would kill now.} Rd5+ {[%emt 0:01:09]} 40. Kc3 {[%emt 0:00:21] Rb6+ would now be deadly.} Rc5 {[%emt 0:00:24]} 41. Kd4 {[%emt 0:51:03]} Rd5+ {[%emt 0:50:04]} 42. Ke4 {[%emt 0:00:00] Hoping for Rb6+.} Rc5 {[%emt 0:00:00][%mdl 1024] Black has compensation.} 43. Kd4 {[%emt 0:00:00] Threatening mate with Rb6+.} Rd5+ {[%emt 0:00:27]} 44. Ke4 {Weighted Error Value: White=0.08 (flawless) /Black=0.07 (flawless) .  Mistake:       	White=2     	Black=1      Inaccurate:     	White=2     	Black=1      OK:         	White=15    	Black=17     Best:        	White=1     	Black=2      Strong:       	---       	Black=1} 1/2-1/2

[Event "German Bundesliga 2023-24"]
[Site "Germany"]
[Date "2024.02.24"]
[Round "10.42"]
[White "Kraemer, Martin"]
[Black "Fridman, Daniel"]
[Result "1/2-1/2"]
[ECO "D41"]
[WhiteElo "2579"]
[BlackElo "2588"]
[Annotator "ChessBase"]
[PlyCount "48"]
[EventDate "2023.10.20"]
[EventType "team-tourn"]
[EventCountry "GER"]
[SourceTitle "playchess.com"]
[Source "ChessBase"]
[SourceQuality "1"]
[TimeControl "40/6000+30:3000+30"]

1. d4 {[%emt 0:00:27]} d5 {[%emt 0:00:06]} 2. c4 {[%emt 0:00:03]} e6 {[%emt 0:00:05]} 3. Nf3 {[%emt 0:00:02]} Nf6 {[%emt 0:00:08]} 4. Nc3 {[%emt 0:00:12]} c5 {[%emt 0:00:05]} 5. cxd5 {[%emt 0:10:32]} cxd4 {[%emt 0:00:21]} 6. Qxd4 {[%emt 0:13:15]} exd5 {[%emt 0:00:12]} 7. e4 {[%emt 0:00:12]} dxe4 {[%emt 0:00:07]} 8. Qxd8+ {[%emt 0:00:07]} Kxd8 {[%emt 0:00:05]} 9. Ng5 {[%emt 0:00:02]} Be6 {[%emt 0:00:12]} 10. Nxe6+ {[%emt 0:06:22]} fxe6 {[%emt 0:00:09]} 11. Bg5 {[%emt 0:00:09]} Nc6 {[%emt 0:33:01]} 12. Bc4 {[%emt 0:17:37]} Ke7 {[%emt 0:04:32]} 13. Nxe4 {[%emt 0:01:08]} Kf7 {[%emt 0:00:09]} 14. Nxf6 {[%emt 0:24:22]} Bb4+ {[%emt 0:03:17]} 15. Ke2 {[%emt 0:00:06]} Nd4+ {[%emt 0:02:07]} 16. Kd3 {[%emt 0:01:15]} gxf6 {[%emt 0:00:09]} 17. Kxd4 {[%emt 0:05:14]} Rhd8+ {[%emt 0:02:51]} 18. Ke4 {[%emt 0:01:33]} fxg5 {[%emt 0:00:08]} 19. Rad1 {[%emt 0:02:50]} Kf6 {[%emt 0:01:34]} 20. h4 {[%emt 0:04:07]} gxh4 {[%emt 0:05:00]} 21. Rxd8 {[%emt 0:03:08]} Rxd8 {[%emt 0:00:46]} 22. Rxh4 {[%emt 0:00:04]} Bc5 {[%emt 0:00:36]} 23. g3 {[%emt 0:05:03]} Rd2 {[%emt 0:02:29]} 24. b3 {[%emt 0:01:11]} Rd4+ {[%emt 0:02:50]} 1/2-1/2

[Event "German Bundesliga 2023-24"]
[Site "Germany"]
[Date "2024.02.24"]
[Round "10.43"]
[White "Tregubov, Pavel V."]
[Black "Neugebauer, Martin"]
[Result "1/2-1/2"]
[ECO "B22"]
[WhiteElo "2567"]
[BlackElo "2529"]
[Annotator "TA"]
[PlyCount "91"]
[EventDate "2023.10.20"]
[EventType "team-tourn"]
[EventCountry "GER"]
[SourceTitle "playchess.com"]
[Source "ChessBase"]
[SourceQuality "1"]
[TimeControl "40/6000+30:3000+30"]

{[%evp 21,91,-11,-11,-14,89,92,97,99,87,106,90,81,91,97,97,97,92,47,50,58,64,71,63,59,49,0,0,0,73,76,75,78,78,84,93,91,99,83,97,104,105,102,139,138,184,66,192,171,222,126,137,137,137,75,82,70,80,37,37,0,83,18,18,18,18,8,8,5,5,5,8,5]} 1. e4 {[%emt 0:00:02]} c5 {[%emt 0:00:15]} 2. c3 {[%emt 0:00:06]} Nf6 {[%emt 0:00:43]} 3. e5 {[%emt 0:00:08]} Nd5 {[%emt 0:00:07]} 4. Nf3 {[%emt 0:00:04]} Nc6 {[%emt 0:00:44]} 5. Bc4 {[%emt 0:00:23]} Nb6 {[%emt 0:03:34]} 6. Bb3 {[%emt 0:00:08]} d5 {[%emt 0:03:10]} 7. exd6 {[%emt 0:00:29]} c4 {[%emt 0:03:19]} 8. Bc2 {[%emt 0:01:01]} Qxd6 {[%emt 0:00:56]} 9. Na3 {[%emt 0:00:11] B22: Sicilian: 2 c3.} Bg4 {[%emt 0:02:12]} 10. Qe2 {[%emt 0:00:23]} Qe6 {[%emt 0:13:39]} 11. Qxe6 {[%emt 0:05:43]} Bxe6 {[%emt 0:00:20]} 12. b3 {[%emt 0:00:12]} O-O-O $146 {[%emt 0:05:06]} (12... Bd5 $11) ({Predecessor:} 12... Bd5 13. Rb1 O-O-O 14. O-O e5 15. Re1 f6 16. Be4 Bxe4 17. Rxe4 cxb3 18. axb3 f5 19. Rxe5 Nxe5 20. Nxe5 Bxa3 21. Bxa3 Rxd2 {0-1 Wagner,D (2569)-Ghaem Maghami,E (2515) Titled Tuesday intern op 12th Jul Late blitz 2022 (5)}) 13. Ng5 $16 {[%emt 0:01:59]} Bd5 {[%emt 0:02:31]} 14. bxc4 {[%emt 0:01:49]} Nxc4 {[%emt 0:01:05]} (14... Bxg2 $2 15. Rg1 $18) 15. Nxc4 {[%emt 0:00:07]} Bxc4 {[%emt 0:00:05] [#]} 16. Bb3 $1 {[%emt 0:02:15]} Bxb3 {[%emt 0:07:57]} 17. axb3 {[%emt 0:00:14]} Rd5 {[%emt 0:00:36]} 18. Nxf7 {[%emt 0:11:48]} Rg8 {[%emt 0:00:06]} 19. d4 {[%emt 0:00:50]} e5 {[%emt 0:03:05]} 20. Nxe5 {[%emt 0:10:02]} Nxe5 {[%emt 0:00:17]} 21. dxe5 {[%emt 0:00:04]} Rxe5+ {[%emt 0:00:10]} 22. Be3 {[%emt 0:00:05]} Bc5 {[%emt 0:01:50]} 23. Ra5 {[%emt 0:13:49]} (23. O-O $1 $14 {is superior.}) 23... Rge8 $11 {[%emt 0:28:59]} 24. Ke2 {[%emt 0:00:56]} Bxe3 {[%emt 0:03:30]} (24... Rg5 $1 $11 25. b4 (25. h4 Bxe3 26. hxg5 Bb6+ 27. Kd3 Bxa5 $15) 25... Bxe3 26. fxe3 Rxg2+ 27. Kf3 Rd2) 25. Rxe5 $16 {[%emt 0:00:06]} Rxe5 {[%emt 0:00:05]} 26. fxe3 {[%emt 0:00:03]} Ra5 {[%emt 0:00:07]} 27. Kd3 {[%emt 0:13:16]} Ra2 {[%emt 0:01:09]} 28. g4 {[%emt 0:00:06]} Kd7 {[%emt 0:16:23]} 29. Rf1 Rxh2 {[%emt 0:00:00]} 30. Rf7+ {[%emt 0:01:53]} Kc6 {[%emt 0:00:00]} 31. Rxg7 {[%emt 0:00:06]} a5 {[%emt 0:00:00] [#]} 32. Rg5 $1 {[%emt 0:08:34]} b6 {[%emt 0:05:14]} (32... b5 $16 {is a better defense.}) 33. Kc4 {[%emt 0:13:29]} (33. Rh5 $18 Rg2 34. g5 (34. Rxh7 Rxg4 35. Rh6+ Kc5 $14)) 33... Rh4 {[%emt 0:02:35]} (33... Rg2 $14) 34. e4 $18 {[%emt 0:02:36]} h5 {[%emt 0:02:28]} (34... Rh6 {was worth a try.} 35. Kd4 Rd6+ 36. Ke3 Rh6) 35. Rxh5 $18 {[%emt 0:18:05]} (35. gxh5 Rxe4+ 36. Kd3 Rh4 $14) 35... Rxg4 {[%emt 0:00:04]} 36. Rh6+ {[%emt 0:00:06]} Kc7 {[%emt 0:00:15]} 37. Re6 {[%emt 0:02:48]} ({White should try} 37. Kd5) 37... Rg3 $16 {[%emt 0:01:56]} 38. b4 {[%emt 0:02:32]} a4 $1 {[%emt 0:04:12]} 39. Re7+ {[%emt 0:02:43]} Kb8 $1 {[%emt 0:00:41]} 40. Re6 {[%emt 0:00:33]} (40. Rd7 $14) 40... Kc7 $16 {[%emt 0:00:31]} 41. Kb5 {[%emt 0:04:23]} (41. b5 $16) 41... a3 $1 $11 {[%emt 0:07:56]} 42. Rc6+ {[%emt 0:01:20]} (42. Rxb6 Rg5+ 43. Kc4 Kxb6 44. Kb3 Rg3 45. Kxa3 Rxc3+ 46. Kb2 Rc7 (46... Re3 {gets mated.} 47. Kc2 Rxe4 48. Kc3 Kb5 49. Kd3 Rxb4 50. Ke3 Kc5 51. Kf3 Rd4 52. Kf2 Kc4 53. Ke3 Kc3 54. Ke2 Rd3 55. Ke1 Rd2 56. Kf1 Kd3 57. Ke1 Ke3 58. Kf1 Kf3 59. Kg1 Rd1+ 60. Kh2 Rf1 61. Kh3 Rh1#) 47. Ka3 Kb5 (47... Re7 {is a self mate.} 48. Kb3 Rc7 49. e5 Kb5 50. e6 Rc4 51. e7 Rc8 52. Ka3 Re8 53. Kb2 Rxe7 54. Kc2 Rd7 55. Kc3 Rd8 56. Kb3 Rc8 57. Ka3 Rc3+ 58. Ka2 Kxb4 59. Kb2 Rc7 60. Ka2 Kc3 61. Kb1 Kb3 62. Ka1 Rc1#) 48. Kb3 Rc8 (48... Re7 49. Kc3 Rxe4 50. Kd3 Rc4 51. Ke3 Kxb4 52. Kd3 Kb3 53. Ke2 Kc2 54. Ke3 Rb4 55. Kf2 Rb3 56. Kg2 Kd1 57. Kf2 Kd2 58. Kg1 Ke3 59. Kg2 Ke2 60. Kh1 Rg3 61. Kh2 Kf2 62. Kh1 Rh3#) 49. e5 Rc6 (49... Re8 50. Kc3 Rxe5 51. Kd4 Re6 52. Kd5 Re1 53. Kd4 Kxb4 54. Kd5 Kc3 55. Kc5 Rd1 56. Kb5 Kd4 57. Kb6 Kd5 58. Kb5 Rb1+ 59. Ka4 Kc4 60. Ka5 Rb4 61. Ka6 Kc5 62. Ka5 Rh4 63. Ka6 Rh7 64. Ka5 Ra7#) 50. e6 Rxe6 51. Kc2 Rd6 (51... Kxb4 52. Kd3 Kc5 53. Kc2 Kc4 54. Kd2 Re8 55. Kc2 Re2+ 56. Kd1 Kd3 57. Kc1 Kc3 58. Kb1 Re1+ 59. Ka2 Rh1 60. Ka3 Ra1#) 52. Kc3 Rd7 53. Kb3 Rc7 54. Ka3 Rc3+ 55. Ka2 Kxb4 56. Kb2 Rc8 57. Ka1 Rc2 58. Kb1 Kb3 59. Ka1 Rc1#) 42... Kd8 {[%emt 0:00:08]} 43. Rxb6 {[%emt 0:02:14]} Rxc3 {[%emt 0:00:35]} 44. Ra6 {[%emt 0:00:41]} Kc7 {[%emt 0:00:47]} 45. e5 {[%emt 0:00:39]} Re3 {[%emt 0:00:39]} 46. Kc4 {[%emt 0:01:34]} 1/2-1/2

[Event "German Bundesliga 2023-24"]
[Site "Germany"]
[Date "2024.02.24"]
[Round "10.44"]
[White "Krejci, Jan"]
[Black "Beerdsen, Thomas"]
[Result "1/2-1/2"]
[ECO "D15"]
[WhiteElo "2517"]
[BlackElo "2496"]
[Annotator "RC"]
[PlyCount "45"]
[EventDate "2023.10.20"]
[EventType "team-tourn"]
[EventCountry "GER"]
[SourceTitle "playchess.com"]
[Source "ChessBase"]
[SourceQuality "1"]
[TimeControl "40/6000+30:3000+30"]

1. Nf3 {[%emt 0:00:03]} Nf6 {[%emt 0:00:38]} 2. c4 {[%emt 0:00:06]} c6 {[%emt 0:00:17]} 3. Nc3 {[%emt 0:02:54]} d5 {[%emt 0:00:09]} 4. e3 {[%emt 0:00:06]} a6 {[%emt 0:02:21]} 5. d4 {[%emt 0:01:49]} b5 {[%emt 0:01:45]} 6. cxd5 {[%emt 0:06:55]} cxd5 {[%emt 0:01:40]} 7. Bd3 {[%emt 0:00:05]} e6 {[%emt 0:02:52]} 8. Ne5 {[%emt 0:02:50]} Nbd7 {[%emt 0:04:09]} 9. f4 {[%emt 0:02:49]} Bb7 {[%emt 0:01:22]} 10. O-O {[%emt 0:00:48]} Be7 {[%emt 0:06:09]} 11. Qf3 {[%emt 0:05:45]} O-O {[%emt 0:02:52]} 12. Bd2 {[%emt 0:04:16]} b4 {[%emt 0:04:27]} 13. Na4 {[%emt 0:10:09]} Ne4 {[%emt 0:08:18]} 14. Qh3 {[%emt 0:00:17]} Nxe5 {[%emt 0:05:40]} 15. fxe5 {[%emt 0:00:16]} Bc6 {[%emt 0:01:39]} 16. Nc5 {[%emt 0:07:39]} Bxc5 {[%emt 0:01:13]} 17. dxc5 {[%emt 0:08:18]} a5 {[%emt 0:07:53]} 18. a3 {[%emt 0:01:36]} h6 {[%emt 0:04:07]} 19. Be1 {[%emt 0:10:30]} Qg5 {[%emt 0:21:51]} 20. axb4 {[%emt 0:03:39]} axb4 {[%emt 0:00:41]} 21. Rxa8 {[%emt 0:00:05]} Rxa8 {[%emt 0:02:17]} 22. Qf3 {[%emt 0:00:45]} Ra7 {[%emt 0:02:30]} 23. Bxb4 {[%emt 0:06:30]} 1/2-1/2

[Event "German Bundesliga 2023-24"]
[Site "Germany"]
[Date "2024.02.24"]
[Round "10.45"]
[White "Feygin, Michael"]
[Black "Kraus, Tomas"]
[Result "1/2-1/2"]
[WhiteElo "2470"]
[BlackElo "2491"]
[Annotator "RC"]
[PlyCount "21"]
[EventDate "2023.10.20"]
[EventType "team-tourn"]
[EventCountry "GER"]
[SourceTitle "playchess.com"]
[Source "ChessBase"]
[SourceQuality "1"]
[TimeControl "40/6000+30:3000+30"]

1. e4 {[%emt 0:00:04]} d6 {[%emt 0:00:32]} 2. d4 {[%emt 0:00:12]} Nf6 {[%emt 0:00:05]} 3. Nc3 {[%emt 0:00:07]} e5 {[%emt 0:00:05]} 4. Nf3 {[%emt 0:00:19]} Nbd7 {[%emt 0:00:06]} 5. Rg1 {[%emt 0:00:11]} g6 {[%emt 0:02:06]} 6. g4 {[%emt 0:00:07]} Bg7 {[%emt 0:01:12]} 7. g5 {[%emt 0:00:57]} Nh5 {[%emt 0:01:13]} 8. Be3 {[%emt 0:00:09]} O-O {[%emt 0:02:42]} 9. Qd2 {[%emt 0:00:48]} c6 {[%emt 0:00:58]} 10. O-O-O {[%emt 0:00:07]} Qa5 {[%emt 0:02:09]} 11. Kb1 {[%emt 0:03:15]} 1/2-1/2

[Event "German Bundesliga 2023-24"]
[Site "Germany"]
[Date "2024.02.24"]
[Round "10.46"]
[White "Ferreira, Jorge Viterbo"]
[Black "Zelbel, Patrick"]
[Result "0-1"]
[ECO "E94"]
[WhiteElo "2525"]
[BlackElo "2478"]
[Annotator "TA"]
[PlyCount "80"]
[EventDate "2023.10.20"]
[EventType "team-tourn"]
[EventCountry "GER"]
[SourceTitle "playchess.com"]
[Source "ChessBase"]
[SourceQuality "1"]
[TimeControl "40/6000+30:3000+30"]

{[%evp 20,80,18,0,0,-7,-15,5,1,-23,-19,-18,-19,-38,-45,-103,-112,-171,-163,-223,-227,-287,-287,-281,-283,-277,-214,-303,-240,-262,-225,-230,-222,-419,-409,-459,-416,-498,-297,-295,-295,-946,-899,-1180,-1152,-1328,-1262,-29987,-29987,-29986,-29987,-29987,-29988,-29989,-29990,-29990,0,-29989,-29990,-29990,-29982,-29986,-29986]} 1. d4 {[%emt 0:00:03]} Nf6 {[%emt 0:00:04]} 2. c4 {[%emt 0:00:11]} g6 {[%emt 0:00:43]} 3. Nc3 {[%emt 0:00:10]} Bg7 {[%emt 0:00:03]} 4. e4 {[%emt 0:00:11]} d6 {[%emt 0:00:08]} 5. Nf3 {[%emt 0:00:08]} O-O {[%emt 0:00:27]} 6. Be2 {[%emt 0:00:09]} e5 {[%emt 0:00:51]} 7. O-O {[%emt 0:00:10]} exd4 {[%emt 0:01:06]} 8. Nxd4 {[%emt 0:00:13]} Re8 {[%emt 0:00:03]} 9. f3 {[%emt 0:00:41]} Nc6 {[%emt 0:00:26]} 10. Nxc6 {[%emt 0:12:02]} bxc6 {[%emt 0:00:42][%cal Bb7c6,Bc6d5,Bd5d4][%mdl 32]} 11. Be3 {[%emt 0:01:04]} d5 {[%emt 0:05:23]} 12. Bg5 {[%emt 0:10:49][%cal Rc4d5]} Qd6 {[%emt 0:26:16]} 13. cxd5 {[%emt 0:37:02]} cxd5 {[%emt 0:01:15] The position is equal.} 14. Kh1 {[%emt 0:01:17]} Bb7 {[%emt 0:27:31]} (14... dxe4 15. fxe4 Nxe4 16. Nxe4 Rxe4 17. Qxd6 cxd6 18. Bf3 $11) 15. Qb3 {[%emt 0:09:14]} Qb6 {[%emt 0:06:47]} 16. Bb5 {[%emt 0:02:25] [#] Hoping for Na4.} c6 {[%emt 0:02:57]} 17. Ba4 {[%emt 0:00:46]} ({White should play} 17. Be2 $15) 17... d4 $17 {[%emt 0:03:32]} (17... dxe4 $2 18. fxe4 Re6 19. Qxb6 axb6 20. Bb3 $18) 18. Bxf6 {[%emt 0:09:22]} (18. Nb1 $17) 18... Bxf6 $19 {[%emt 0:00:02]} 19. Ne2 {[%emt 0:00:29]} (19. Nb1 {was worth a try.}) 19... Ba6 {[%emt 0:03:26]} 20. Nf4 {[%emt 0:04:41]} Be5 {[%emt 0:03:54] A strong pair of Bishops.} 21. Nh3 {[%emt 0:03:03]} Bxf1 {[%emt 0:00:07]} 22. Rxf1 {[%emt 0:00:07]} Rab8 {[%emt 0:04:32]} 23. Qc4 {[%emt 0:02:09]} (23. Qxb6 $142 Rxb6 24. f4) 23... Qxb2 {[%emt 0:03:55]} 24. Bb3 {[%emt 0:00:40]} Re7 {[%emt 0:02:28]} 25. Nf2 {[%emt 0:04:03][%cal Of2d3]} Qc3 {[%emt 0:01:15]} 26. Qa6 $2 {[%emt 0:00:25]} (26. Rc1 Qxc4 27. Rxc4) 26... Rb5 {[%emt 0:02:31]} 27. Qc8+ {[%emt 0:01:21]} Kg7 {[%emt 0:00:04]} 28. Qd8 {[%emt 0:00:21]} Qb4 {[%emt 0:01:38]} (28... Rbb7 $142 29. h4 Rbd7) 29. Nd3 {[%emt 0:04:50]} Qd6 {[%emt 0:00:02]} 30. Qc8 {[%emt 0:00:08]} (30. Qxd6 Bxd6 31. g3) 30... Bxh2 {[%emt 0:03:19] [#] White must now prevent ...Rh5.} 31. f4 {[%emt 0:01:00]} Rh5 {[%emt 0:03:31]} 32. g4 {[%emt 0:00:40]} Rh3 {[%emt 0:01:07]} (32... Bxf4+ 33. gxh5 Rxe4 34. h6+ Kxh6 35. Qg4 $16 (35. Bxf7 Bg5 $11) (35. Nxf4 Rxf4 36. Rxf4 Qxf4 $17)) 33. e5 {[%emt 0:05:26]} Bxf4+ {[%emt 0:00:12]} 34. Kg2 {[%emt 0:01:08]} Rg3+ {[%emt 0:00:27]} 35. Kh1 {[%emt 0:00:13]} Bxe5 {[%emt 0:00:43]} 36. Bc4 {[%emt 0:00:22]} Rh3+ {[%emt 0:02:03]} 37. Kg2 {[%emt 0:00:06]} Rg3+ {[%emt 0:01:54]} 38. Kh1 {[%emt 0:00:06]} Bf6 {[%emt 0:00:58] Black mates.} 39. Nf4 {[%emt 0:00:56]} Qe5 {[%emt 0:00:26]} 40. Kh2 {[%emt 0:00:48]} Rc3 {[%emt 0:00:20] White did not feel at home in the position after the opening.   Weighted Error Value: White=0.89/Black=0.47.  Mistake:       	White=6     	Black=1      Inaccurate:     	White=1     	---        OK:         	White=5     	Black=9      Best:        	White=1     	Black=3} 0-1